fUST/lending_fUST_20250521
["ID","MTS","AMOUNT","RATE_DAILY","PERIOD"]
[361770432,1747773058928,-430.0,0.00016986,2]
[361770433,1747773058938,-430.0,0.00016986,2]
[361770434,1747773058947,-470.0,0.00016986,2]
[361770435,1747773058956,-430.0,0.00016986,2]
[361770436,1747773058966,-430.0,0.00016986,2]
[361770437,1747773058975,-450.0,0.00016986,2]
[361770438,1747773058984,-450.0,0.00016986,2]
[361770439,1747773058993,-430.0,0.00016986,2]
[361770440,1747773059002,-477.81,0.00016986,2]
[361770441,1747773059012,-430.0,0.00016986,2]
[361770442,1747773059021,-850.21,0.00016986,2]
[361770443,1747773059030,-430.0,0.00016986,2]
[361770444,1747773059040,-430.0,0.00016986,2]
[361770445,1747773059050,-430.0,0.00016986,2]
[361770446,1747773059059,-430.0,0.00016986,2]
[361770447,1747773059069,-634.51,0.00016986,2]
[361770448,1747773059079,-430.0,0.00016986,2]
[361770449,1747773059088,-430.0,0.00016986,2]
[361770450,1747773059097,-430.0,0.00016986,2]
[361770451,1747773059107,-370.0,0.00016986,2]
[361770452,1747773059116,-430.0,0.00016986,2]
[361770453,1747773059125,-430.0,0.00016986,2]
[361770454,1747773059135,-370.0,0.00016986,2]
[361770455,1747773059144,-430.0,0.00016986,2]
[361770456,1747773059154,-430.0,0.00016986,2]
[361770457,1747773059163,-430.0,0.00016986,2]
[361770458,1747773059172,-401.157945,0.00016986,2]
[361770459,1747773059182,-401.157945,0.00016986,2]
[361770460,1747773059192,-398.57124401,0.00016986,2]
[361770461,1747773059201,-430.0,0.00016986,2]
[361770462,1747773059210,-401.157945,0.00016986,2]
[361770463,1747773059221,-430.0,0.00016986,2]
[361770464,1747773059231,-401.157945,0.00016986,2]
[361770465,1747773059240,-507.92,0.00016986,2]
[361770466,1747773059249,-430.0,0.00016986,2]
[361770467,1747773059258,-151.0,0.00016986,2]
[361770468,1747773059268,-151.0,0.00016986,2]
[361770469,1747773059277,-151.0,0.00016986,2]
[361770470,1747773059288,-342.34602166,0.00016986,2]
[361770471,1747773059300,-430.0,0.00016986,2]
[361770472,1747773059310,-430.0,0.00016986,2]
[361770473,1747773059319,-440.0,0.00016986,2]
[361770474,1747773059329,-345.93090145,0.00016986,2]
[361770475,1747773059339,-430.0,0.00016986,2]
[361770476,1747773059348,-400.0,0.00016986,2]
[361770477,1747773059357,-242.92416889,0.00016986,2]
[361770478,1747773059369,-430.0,0.00016986,2]
[361770479,1747773059379,-430.0,0.00016986,2]
[361770480,1747773059389,-490.0,0.00016986,2]
[361770481,1747773059398,-430.0,0.00016986,2]
[361770482,1747773059407,-430.0,0.00016986,2]
[361770483,1747773059417,-450.0,0.00016986,2]
[361770484,1747773059426,-430.0,0.00016986,2]
[361770485,1747773059437,-430.0,0.00016986,2]
[361770486,1747773059446,-450.0,0.00016986,2]
[361770487,1747773059455,-430.0,0.00016986,2]
[361770488,1747773059465,-556.63,0.00016986,2]
[361770489,1747773059475,-430.0,0.00016986,2]
[361770490,1747773059485,-430.0,0.00016986,2]
[361770491,1747773059495,-400.0,0.00016986,2]
[361770492,1747773059505,-430.0,0.00016986,2]
[361770493,1747773059514,-430.0,0.00016986,2]
[361770494,1747773059524,-430.0,0.00016986,2]
[361770495,1747773059535,-482.64756632,0.00016986,2]
[361770496,1747773059548,-430.0,0.00016986,2]
[361770497,1747773059558,-430.0,0.00016986,2]
[361770498,1747773059568,-675.98,0.00016986,2]
[361770499,1747773059577,-430.0,0.00016986,2]
[361770500,1747773059587,-430.0,0.00016986,2]
[361770501,1747773059597,-430.0,0.00016986,2]
[361770502,1747773059606,-430.0,0.00016986,2]
[361770503,1747773059616,-430.0,0.00016986,2]
[361770504,1747773059625,-430.0,0.00016986,2]
[361770505,1747773059635,-317.46294542,0.00016986,2]
[361770506,1747773059645,-430.0,0.00016986,2]
[361770507,1747773059654,-430.0,0.00016986,2]
[361770508,1747773059663,-430.0,0.00016986,2]
[361770509,1747773059673,-430.0,0.00016986,2]
[361770510,1747773059682,-400.0,0.00016986,2]
[361770511,1747773059691,-430.0,0.00016986,2]
[361770512,1747773059701,-327.61351071,0.00016986,2]
[361770513,1747773059711,-400.0,0.00016986,2]
[361770514,1747773059720,-430.0,0.00016986,2]
[361770515,1747773059729,-430.0,0.00016986,2]
[361770516,1747773059739,-430.0,0.00016986,2]
[361770517,1747773059749,-158.08173154,0.00016986,2]
[361770518,1747773059759,-327.7256588,0.00016986,2]
[361770519,1747773059768,-403.64829231,0.00016986,2]
[361770520,1747773059779,-430.0,0.00016986,2]
[361770521,1747773059792,-430.0,0.00016986,2]
[361770522,1747773059801,-513.81692754,0.00016986,2]
[361770523,1747773059811,-450.0,0.00016986,2]
[361770524,1747773059821,-480.01,0.00016986,2]
[361770525,1747773059831,-151.0,0.00016986,2]
[361770526,1747773059841,-151.0,0.00016986,2]
[361770527,1747773059851,-151.0,0.00016986,2]
[361770528,1747773059861,-430.0,0.00016986,2]
[361770529,1747773059871,-430.0,0.00016986,2]
[361770530,1747773060017,-430.0,0.00016986,2]
[361770531,1747773060028,-430.0,0.00016986,2]
[361770532,1747773060041,-430.0,0.00016986,2]
[361770533,1747773060052,-430.0,0.00016986,2]
[361770534,1747773060062,-430.0,0.00016986,2]
[361770535,1747773060073,-288.86864681,0.00016986,2]
[361770536,1747773060083,-430.0,0.00016986,2]
[361770537,1747773060092,-430.0,0.00016986,2]
[361770538,1747773060102,-430.0,0.00016986,2]
[361770539,1747773060112,-385.68922903,0.00016986,2]
[361770540,1747773060122,-430.0,0.00016986,2]
[361770541,1747773060132,-430.0,0.00016986,2]
[361770542,1747773060141,-167.537354,0.00016986,2]
[361770543,1747773060151,-430.0,0.00016986,2]
[361770544,1747773060161,-430.0,0.00016986,2]
[361770545,1747773060170,-167.537359,0.00016986,2]
[361770546,1747773060180,-430.0,0.00016986,2]
[361770547,1747773060189,-534.52,0.00016986,2]
[361770548,1747773060199,-430.0,0.00016986,2]
[361770549,1747773060209,-1319.915254,0.00016986,2]
[361770550,1747773060219,-1319.915254,0.00016986,2]
[361770551,1747773060228,-430.0,0.00016986,2]
[361770552,1747773060238,-430.0,0.00016986,2]
[361770553,1747773060248,-1319.915254,0.00016986,2]
[361770554,1747773060257,-1319.915262,0.00016986,2]
[361770555,1747773060267,-430.0,0.00016986,2]
[361770556,1747773060277,-430.0,0.00016986,2]
[361770557,1747773060286,-430.0,0.00016986,2]
[361770558,1747773060298,-430.0,0.00016986,2]
[361770559,1747773060308,-527.4,0.00016986,2]
[361770560,1747773060318,-430.0,0.00016986,2]
[361770561,1747773060327,-430.0,0.00016986,2]
[361770562,1747773060337,-430.0,0.00016986,2]
[361770563,1747773060347,-430.0,0.00016986,2]
[361770564,1747773060357,-327.56847809,0.00016986,2]
[361770565,1747773060371,-450.0,0.00016986,2]
[361770566,1747773060381,-430.0,0.00016986,2]
[361770567,1747773060390,-430.0,0.00016986,2]
[361770568,1747773060400,-430.0,0.00016986,2]
[361770569,1747773060410,-430.0,0.00016986,2]
[361770570,1747773060420,-400.0,0.00016986,2]
[361770571,1747773060430,-430.0,0.00016986,2]
[361770572,1747773060440,-430.0,0.00016986,2]
[361770573,1747773060451,-430.0,0.00016986,2]
[361770574,1747773060461,-574.63,0.00016986,2]
[361770575,1747773060471,-430.0,0.00016986,2]
[361770576,1747773060480,-430.0,0.00016986,2]
[361770577,1747773060490,-430.0,0.00016986,2]
[361770578,1747773060499,-263.459444,0.00016986,2]
[361770579,1747773060509,-263.459444,0.00016986,2]
[361770580,1747773060519,-430.0,0.00016986,2]
[361770581,1747773060529,-263.459444,0.00016986,2]
[361770582,1747773060540,-430.0,0.00016986,2]
[361770583,1747773060549,-342.043424,0.00016986,2]
[361770584,1747773060559,-342.043424,0.00016986,2]
[361770585,1747773060569,-430.0,0.00016986,2]
[361770586,1747773060578,-263.459444,0.00016986,2]
[361770587,1747773060587,-263.459444,0.00016986,2]
[361770588,1747773060597,-263.459444,0.00016986,2]
[361770589,1747773060607,-430.0,0.00016986,2]
[361770590,1747773060616,-430.0,0.00016986,2]
[361770591,1747773060626,-430.0,0.00016986,2]
[361770592,1747773060637,-342.043424,0.00016986,2]
[361770593,1747773060647,-342.043428,0.00016986,2]
[361770594,1747773060656,-521.23,0.00016986,2]
[361770595,1747773060666,-400.0,0.00016986,2]
[361770596,1747773060675,-430.0,0.00016986,2]
[361770597,1747773060685,-450.0,0.00016986,2]
[361770598,1747773060695,-364.53726842,0.00016986,2]
[361770599,1747773060704,-430.0,0.00016986,2]
[361770600,1747773060714,-430.0,0.00016986,2]
[361770601,1747773060723,-400.0,0.00016986,2]
[361770602,1747773060734,-400.0,0.00016986,2]
[361770603,1747773060744,-430.0,0.00016986,2]
[361770604,1747773060755,-412.74734466,0.00016986,2]
[361770605,1747773060765,-430.0,0.00016986,2]
[361770606,1747773060774,-430.0,0.00016986,2]
[361770607,1747773060783,-430.0,0.00016986,2]
[361770608,1747773060793,-430.0,0.00016986,2]
[361770609,1747773060802,-1348.5,0.00016986,2]
[361770610,1747773060812,-414.06937325,0.00016986,2]
[361770611,1747773060821,-470.0,0.00016986,2]
[361770612,1747773060830,-430.0,0.00016986,2]
[361770613,1747773060841,-405.45713378,0.00016986,2]
[361770614,1747773060852,-430.0,0.00016986,2]
[361770615,1747773060862,-430.0,0.00016986,2]
[361770616,1747773060871,-430.0,0.00016986,2]
[361770617,1747773060881,-430.0,0.00016986,2]
[361770618,1747773060890,-1733.29,0.00016986,2]
[361770619,1747773060900,-430.0,0.00016986,2]
[361770620,1747773060909,-430.0,0.00016986,2]
[361770621,1747773060918,-430.0,0.00016986,2]
[361770622,1747773060927,-430.0,0.00016986,2]
[361770623,1747773060936,-430.0,0.00016986,2]
[361770624,1747773060945,-578.9,0.00016986,2]
[361770625,1747773060954,-450.95396747,0.00016986,2]
[361770626,1747773060964,-430.0,0.00016986,2]
[361770627,1747773060973,-348.99525934,0.00016986,2]
[361770628,1747773060982,-430.0,0.00016986,2]
[361770629,1747773060992,-608.02,0.00016986,2]
[361770630,1747773061001,-470.0,0.00016986,2]
[361770631,1747773061010,-430.0,0.00016986,2]
[361770632,1747773061019,-430.0,0.00016986,2]
[361770633,1747773061028,-430.0,0.00016986,2]
[361770634,1747773061039,-430.0,0.00016986,2]
[361770635,1747773061048,-529.63304449,0.00016986,2]
[361770636,1747773061057,-430.0,0.00016986,2]
[361770637,1747773061067,-430.0,0.00016986,2]
[361770638,1747773061076,-430.0,0.00016986,2]
[361770639,1747773061085,-430.0,0.00016986,2]
[361770640,1747773061094,-430.0,0.00016986,2]
[361770641,1747773061103,-546.96354064,0.00016986,2]
[361770642,1747773061113,-430.0,0.00016986,2]
[361770643,1747773061121,-505.32,0.00016986,2]
[361770644,1747773061131,-430.0,0.00016986,2]
[361770645,1747773061141,-428.16965099,0.00016986,2]
[361770646,1747773061150,-430.0,0.00016986,2]
[361770647,1747773061159,-400.0,0.00016986,2]
[361770648,1747773061168,-286.23431929,0.00016986,2]
[361770649,1747773061178,-430.0,0.00016986,2]
[361770650,1747773061187,-492.61767211,0.00016986,2]
[361770651,1747773061196,-283.31373509,0.00016986,2]
[361770652,1747773061205,-348.85240356,0.00016986,2]
[361770653,1747773061215,-430.0,0.00016986,2]
[361770654,1747773061224,-1786.2,0.00016986,2]
[361770655,1747773061233,-430.0,0.00016986,2]
[361770656,1747773061242,-430.0,0.00016986,2]
[361770657,1747773061252,-463.29,0.00016986,2]
[361770658,1747773061261,-2017.72,0.00016986,2]
[361770659,1747773061270,-488.78887197,0.00016986,2]
[361770660,1747773061280,-450.0,0.00016986,2]
[361770661,1747773061289,-430.0,0.00016986,2]
[361770662,1747773061298,-430.0,0.00016986,2]
[361770663,1747773061307,-430.0,0.00016986,2]
[361770664,1747773061317,-420.0,0.00016986,2]
[361770665,1747773061326,-430.0,0.00016986,2]
[361770666,1747773061335,-430.0,0.00016986,2]
[361770667,1747773061344,-430.0,0.00016986,2]
[361770668,1747773061353,-430.0,0.00016986,2]
[361770669,1747773061364,-271.92306455,0.00016986,2]
[361770670,1747773061374,-430.0,0.00016986,2]
[361770671,1747773061383,-414.73581901,0.00016986,2]
[361770672,1747773061393,-892.65,0.00016986,2]
[361770673,1747773061402,-430.0,0.00016986,2]
[361770674,1747773061412,-430.0,0.00016986,2]
[361770675,1747773061421,-616.21,0.00016986,2]
[361770676,1747773061431,-400.0,0.00016986,2]
[361770677,1747773061443,-430.0,0.00016986,2]
[361770678,1747773061453,-430.0,0.00016986,2]
[361770679,1747773061462,-430.0,0.00016986,2]
[361770680,1747773061471,-450.0,0.00016986,2]
[361770681,1747773061481,-430.0,0.00016986,2]
[361770682,1747773061490,-430.0,0.00016986,2]
[361770683,1747773061499,-430.0,0.00016986,2]
[361770684,1747773061509,-943.62,0.00016986,2]
[361770685,1747773061519,-430.0,0.00016986,2]
[361770686,1747773061529,-430.0,0.00016986,2]
[361770687,1747773061539,-410.68630758,0.00016986,2]
[361770688,1747773061548,-430.0,0.00016986,2]
[361770689,1747773061557,-430.0,0.00016986,2]
[361770690,1747773061566,-430.0,0.00016986,2]
[361770691,1747773061575,-430.0,0.00016986,2]
[361770692,1747773061585,-195.98513885,0.00016986,2]
[361770693,1747773061595,-400.0,0.00016986,2]
[361770694,1747773061604,-430.0,0.00016986,2]
[361770695,1747773061613,-959.1,0.00016986,2]
[361770696,1747773061622,-430.0,0.00016986,2]
[361770697,1747773061631,-430.0,0.00016986,2]
[361770698,1747773061641,-400.0,0.00016986,2]
[361770699,1747773061650,-430.0,0.00016986,2]
[361770700,1747773061659,-310.46633844,0.00016986,2]
[361770701,1747773061669,-739.12,0.00016986,2]
[361770702,1747773061678,-430.0,0.00016986,2]
[361770703,1747773061688,-738.39,0.00016986,2]
[361770704,1747773061697,-430.0,0.00016986,2]
[361770705,1747773061707,-450.0,0.00016986,2]
[361770706,1747773061716,-805.15,0.00016986,2]
[361770707,1747773061725,-340.0,0.00016986,2]
[361770708,1747773061734,-430.0,0.00016986,2]
[361770709,1747773061743,-430.0,0.00016986,2]
[361770710,1747773061752,-3703.4,0.00016986,2]
[361770711,1747773061761,-430.0,0.00016986,2]
[361770712,1747773061770,-430.0,0.00016986,2]
[361770713,1747773061779,-430.0,0.00016986,2]
[361770714,1747773061789,-848.13,0.00016986,2]
[361770715,1747773061798,-1104.97,0.00016986,2]
[361770716,1747773061808,-587.05,0.00016986,2]
[361770717,1747773061817,-1334.29,0.00016986,2]
[361770718,1747773061826,-430.0,0.00016986,2]
[361770719,1747773061835,-430.0,0.00016986,2]
[361770720,1747773061845,-430.0,0.00016986,2]
[361770721,1747773061854,-1167.29,0.00016986,2]
[361770722,1747773061864,-430.0,0.00016986,2]
[361770723,1747773061873,-400.0,0.00016986,2]
[361770724,1747773061882,-430.0,0.00016986,2]
[361770725,1747773061891,-1353.83,0.00016986,2]
[361770726,1747773061901,-430.0,0.00016986,2]
[361770727,1747773061910,-430.0,0.00016986,2]
[361770728,1747773061920,-430.0,0.00016986,2]
[361770729,1747773061929,-430.0,0.00016986,2]
[361770730,1747773061938,-4797.69,0.00016986,2]
[361770731,1747773061948,-515.80339789,0.00016986,2]
[361770732,1747773061957,-430.0,0.00016986,2]
[361770733,1747773061966,-372.3766132,0.00016986,2]
[361770734,1747773061975,-430.0,0.00016986,2]
[361770735,1747773061985,-430.0,0.00016986,2]
[361770736,1747773061994,-298.962645,0.00016986,2]
[361770737,1747773062004,-430.0,0.00016986,2]
[361770738,1747773062013,-298.962645,0.00016986,2]
[361770739,1747773062022,-557.79,0.00016986,2]
[361770740,1747773062031,-298.962645,0.00016986,2]
[361770741,1747773062043,-298.962653,0.00016986,2]
[361770742,1747773062053,-430.0,0.00016986,2]
[361770743,1747773062062,-430.0,0.00016986,2]
[361770744,1747773062071,-911.0,0.00016986,2]
[361770745,1747773062081,-4007.96,0.00016986,2]
[361770746,1747773062091,-400.0,0.00016986,2]
[361770747,1747773062100,-430.0,0.00016986,2]
[361770748,1747773062109,-361.72247428,0.00016986,2]
[361770749,1747773062119,-430.0,0.00016986,2]
[361770750,1747773062128,-1236.76,0.00016986,2]
[361770751,1747773062137,-430.0,0.00016986,2]
[361770752,1747773062146,-276.87737818,0.00016986,2]
[361770753,1747773062155,-430.0,0.00016986,2]
[361770754,1747773062166,-188.0,0.00016986,2]
[361770755,1747773062177,-430.0,0.00016986,2]
[361770756,1747773062187,-565.79789111,0.00016986,2]
[361770757,1747773062198,-975.29,0.00016986,2]
[361770758,1747773062208,-430.0,0.00016986,2]
[361770759,1747773062218,-430.0,0.00016986,2]
[361770760,1747773062228,-487.56,0.00016986,2]
[361770761,1747773062238,-430.0,0.00016986,2]
[361770762,1747773062247,-430.0,0.00016986,2]
[361770763,1747773062257,-481.37,0.00016986,2]
[361770764,1747773062266,-430.0,0.00016986,2]
[361770765,1747773062275,-489.0189341,0.00016986,2]
[361770766,1747773062285,-430.0,0.00016986,2]
[361770767,1747773062297,-430.0,0.00016986,2]
[361770768,1747773062306,-430.0,0.00016986,2]
[361770769,1747773062315,-1094.96,0.00016986,2]
[361770770,1747773062325,-430.0,0.00016986,2]
[361770771,1747773062334,-430.0,0.00016986,2]
[361770772,1747773062344,-400.0,0.00016986,2]
[361770773,1747773062354,-430.0,0.00016986,2]
[361770774,1747773062367,-430.0,0.00016986,2]
[361770775,1747773062379,-465.43,0.00016986,2]
[361770776,1747773062388,-430.0,0.00016986,2]
[361770777,1747773062397,-5479.04,0.00016986,2]
[361770778,1747773062406,-430.0,0.00016986,2]
[361770779,1747773062416,-430.0,0.00016986,2]
[361770780,1747773062425,-430.0,0.00016986,2]
[361770781,1747773062434,-430.0,0.00016986,2]
[361770782,1747773062445,-430.0,0.00016986,2]
[361770783,1747773062454,-430.0,0.00016986,2]
[361770784,1747773062464,-430.0,0.00016986,2]
[361770785,1747773062473,-441.06,0.00016986,2]
[361770786,1747773062483,-430.0,0.00016986,2]
[361770787,1747773062492,-1079.7,0.00016986,2]
[361770788,1747773062502,-430.0,0.00016986,2]
[361770789,1747773062511,-430.0,0.00016986,2]
[361770790,1747773062520,-430.0,0.00016986,2]
[361770791,1747773062529,-430.0,0.00016986,2]
[361770792,1747773062539,-430.0,0.00016986,2]
[361770793,1747773062548,-746.19,0.00016986,2]
[361770794,1747773062559,-430.0,0.00016986,2]
[361770795,1747773062568,-430.0,0.00016986,2]
[361770796,1747773062712,-628.21,0.00016986,2]
[361770797,1747773062723,-430.0,0.00016986,2]
[361770798,1747773062732,-411.32,0.00016986,2]
[361770799,1747773062742,-799.63,0.00016986,2]
[361770800,1747773062750,-1092.67,0.00016986,2]
[361770801,1747773062759,-430.0,0.00016986,2]
[361770802,1747773062768,-430.0,0.00016986,2]
[361770803,1747773062777,-952.84,0.00016986,2]
[361770804,1747773062786,-456.3,0.00016986,2]
[361770805,1747773062796,-574.9,0.00016986,2]
[361770806,1747773062805,-945.71,0.00016986,2]
[361770807,1747773062813,-420.0,0.00016986,2]
[361770808,1747773062822,-430.0,0.00016986,2]
[361770809,1747773062832,-485.0,0.00016986,2]
[361770810,1747773062841,-570.81,0.00016986,2]
[361770811,1747773062850,-430.0,0.00016986,2]
[361770812,1747773062859,-1977.39,0.00016986,2]
[361770813,1747773062868,-497.66,0.00016986,2]
[361770814,1747773062877,-658.86,0.00016986,2]
[361770815,1747773062886,-430.0,0.00016986,2]
[361770816,1747773062895,-430.0,0.00016986,2]
[361770817,1747773062905,-430.0,0.00016986,2]
[361770818,1747773062914,-308.63569982,0.00016986,2]
[361770819,1747773062923,-430.0,0.00016986,2]
[361770820,1747773062933,-430.0,0.00016986,2]
[361770821,1747773062942,-430.0,0.00016986,2]
[361770822,1747773062951,-430.0,0.00016986,2]
[361770823,1747773062960,-400.0,0.00016986,2]
[361770824,1747773062969,-430.0,0.00016986,2]
[361770825,1747773062978,-430.0,0.00016986,2]
[361770826,1747773062988,-622.8,0.00016986,2]
[361770827,1747773062997,-450.0,0.00016986,2]
[361770828,1747773063006,-400.0,0.00016986,2]
[361770829,1747773063016,-430.0,0.00016986,2]
[361770830,1747773063026,-430.0,0.00016986,2]
[361770831,1747773063035,-445.37854421,0.00016986,2]
[361770832,1747773063046,-430.0,0.00016986,2]
[361770833,1747773063056,-430.0,0.00016986,2]
[361770834,1747773063065,-1986.39,0.00016986,2]
[361770835,1747773063074,-430.0,0.00016986,2]
[361770836,1747773063084,-400.0,0.00016986,2]
[361770837,1747773063093,-430.0,0.00016986,2]
[361770838,1747773063102,-430.0,0.00016986,2]
[361770839,1747773063112,-967.97,0.00016986,2]
[361770840,1747773063121,-457.24858843,0.00016986,2]
[361770841,1747773063130,-504.43126819,0.00017058,2]
[361770842,1747773063140,-500.0,0.00017058,2]
[361770843,1747773063149,-500.0,0.00017058,2]
[361770844,1747773063158,-151.0,0.000171,2]
[361770845,1747773063168,-500.0,0.000171,2]
[361770846,1747773063178,-314.48519801,0.00017139,2]
[361770847,1747773063188,-160.0,0.00017139,2]
[361770848,1747773063198,-160.0,0.00017139,2]
[361770849,1747773063208,-422.65292303,0.00017139,2]
[361770850,1747773063218,-12640.66806714,0.00017139,2]
[361770851,1747773063227,-212.38718278,0.00017139,2]
[361770852,1747773063238,-894.64583333,0.00017139,2]
[361770853,1747773063247,-160.0,0.00017139,2]
[361770854,1747773063257,-160.0,0.00017139,2]
[361770855,1747773063266,-160.0,0.00017139,2]
[361770856,1747773063277,-500.0,0.0001716,2]
[361770857,1747773063287,-500.0,0.0001716,2]
[361770858,1747773063299,-418.348648,0.0001716,2]
[361770859,1747773063310,-418.34864,0.0001716,2]
[361770860,1747773063320,-151.0,0.0001716,2]
[361770861,1747773063331,-151.0,0.0001716,2]
[361770862,1747773063341,-263.459444,0.0001716,2]
[361770863,1747773063352,-263.459454,0.0001716,2]
[361770864,1747773063363,-9456.98226441,0.0001716,2]
[361770865,1747773063375,-500.0,0.0001721,2]
[361770866,1747773063385,-500.0,0.0001721,2]
[361770867,1747773063394,-500.0,0.0001721,2]
[361770868,1747773063403,-6219.7298182,0.0001721,2]
[361770869,1747773063414,-370.0,0.0001726,2]
[361770870,1747773063423,-430.0,0.0001726,2]
[361770871,1747773063433,-430.0,0.0001726,2]
[361770872,1747773063443,-430.0,0.0001726,2]
[361770873,1747773063453,-430.0,0.0001726,2]
[361770874,1747773063463,-430.0,0.0001726,2]
[361770875,1747773063473,-377.68093883,0.0001726,2]
[361770876,1747773063482,-430.0,0.0001726,2]
[361770877,1747773063492,-388.02747551,0.0001726,2]
[361770878,1747773063502,-430.0,0.0001726,2]
[361770879,1747773063512,-430.0,0.0001726,2]
[361770880,1747773063521,-315.79698677,0.0001726,2]
[361770881,1747773063531,-430.0,0.0001726,2]
[361770882,1747773063542,-430.0,0.0001726,2]
[361770883,1747773063551,-430.0,0.0001726,2]
[361770884,1747773063561,-370.0,0.0001726,2]
[361770885,1747773063570,-430.0,0.0001726,2]
[361770886,1747773063580,-430.0,0.0001726,2]
[361770887,1747773063589,-400.0,0.0001726,2]
[361770888,1747773063599,-430.0,0.0001726,2]
[361770889,1747773063609,-430.0,0.0001726,2]
[361770890,1747773063619,-430.0,0.0001726,2]
[361770891,1747773063629,-430.0,0.0001726,2]
[361770892,1747773063639,-151.0,0.0001726,2]
[361770893,1747773063649,-151.0,0.0001726,2]
[361770894,1747773063659,-430.0,0.0001726,2]
[361770895,1747773063669,-151.0,0.0001726,2]
[361770896,1747773063679,-151.0,0.0001726,2]
[361770897,1747773063688,-430.0,0.0001726,2]
[361770898,1747773063699,-430.0,0.0001726,2]
[361770899,1747773063708,-403.40862504,0.0001726,2]
[361770900,1747773063718,-237.929788,0.0001726,2]
[361770901,1747773063729,-168.29192913,0.0001726,2]
[361770902,1747773063738,-237.929788,0.0001726,2]
[361770903,1747773063748,-385.53499075,0.0001726,2]
[361770904,1747773063758,-479.903918,0.0001726,2]
[361770905,1747773063767,-370.0,0.0001726,2]
[361770906,1747773063777,-430.0,0.0001726,2]
[361770907,1747773063786,-479.903918,0.0001726,2]
[361770908,1747773063797,-151.0,0.0001726,2]
[361770909,1747773063807,-151.0,0.0001726,2]
[361770910,1747773063816,-284.213773,0.0001726,2]
[361770911,1747773063826,-430.0,0.0001726,2]
[361770912,1747773063835,-470.88658429,0.0001726,2]
[361770913,1747773063844,-354.4738317,0.0001726,2]
[361770914,1747773063853,-370.0,0.0001726,2]
[361770915,1747773063863,-430.0,0.0001726,2]
[361770916,1747773063872,-515.82,0.0001726,2]
[361770917,1747773063881,-650.41,0.0001726,2]
[361770918,1747773063891,-430.0,0.0001726,2]
[361770919,1747773063900,-430.0,0.0001726,2]
[361770920,1747773063909,-151.0,0.0001726,2]
[361770921,1747773063919,-151.0,0.0001726,2]
[361770922,1747773063928,-151.0,0.0001726,2]
[361770923,1747773063937,-151.0,0.0001726,2]
[361770924,1747773063947,-434.20163493,0.0001726,2]
[361770925,1747773063956,-430.0,0.0001726,2]
[361770926,1747773063966,-430.0,0.0001726,2]
[361770927,1747773063976,-430.0,0.0001726,2]
[361770928,1747773063986,-430.0,0.0001726,2]
[361770929,1747773063996,-430.0,0.0001726,2]
[361770930,1747773064007,-430.0,0.0001726,2]
[361770931,1747773064017,-430.0,0.0001726,2]